[Event "Late-Titled-Tuesday-Blitz-January-30-2024"]
[Site "Chess.com"]
[Date "2024.01.30"]
[Round "10"]
[White "Alex_Sahakyan2006"]
[Black "ozates"]
[Result "1-0"]
[WhiteElo "2871"]
[BlackElo "2642"]
[TimeControl "180+1"]
[EndTime "15:55:57 PST"]
[Termination "Alex_Sahakyan2006 won by resignation"]

1. e4 {[%clk 0:03:00.9]} 1... c5 {[%clk 0:03:00.9]} 2. Nc3 {[%clk 0:03:00.4]}
2... Nc6 {[%clk 0:03:01.2]} 3. Bb5 {[%clk 0:02:58.2]} 3... Nd4 {[%clk
0:03:01.1]} 4. Nf3 {[%clk 0:02:57.8]} 4... a6 {[%clk 0:03:00.4]} 5. Bd3 {[%clk
0:02:57]} 5... g6 {[%clk 0:02:59.7]} 6. Nxd4 {[%clk 0:02:53.8]} 6... cxd4 {[%clk
0:03:00.6]} 7. Ne2 {[%clk 0:02:54.4]} 7... d5 {[%clk 0:03:01.2]} 8. O-O {[%clk
0:02:42.2]} 8... dxe4 {[%clk 0:02:58.3]} 9. Bxe4 {[%clk 0:02:43.1]} 9... Nf6
{[%clk 0:02:58]} 10. Bf3 {[%clk 0:02:39.4]} 10... Bg7 {[%clk 0:02:57.8]} 11. d3
{[%clk 0:02:37.5]} 11... e5 {[%clk 0:02:56.3]} 12. c3 {[%clk 0:02:19.7]} 12...
dxc3 {[%clk 0:02:53.6]} 13. bxc3 {[%clk 0:02:16.6]} 13... O-O {[%clk 0:02:53.5]}
14. Ng3 {[%clk 0:02:02.2]} 14... Re8 {[%clk 0:02:51.7]} 15. Rb1 {[%clk
0:02:00.7]} 15... Nd5 {[%clk 0:02:51]} 16. Qb3 {[%clk 0:01:53.7]} 16... Be6
{[%clk 0:02:50.9]} 17. c4 {[%clk 0:01:51.4]} 17... Nf4 {[%clk 0:02:42.1]} 18.
Bxf4 {[%clk 0:01:49.6]} 18... exf4 {[%clk 0:02:43]} 19. Ne2 {[%clk 0:01:50]}
19... g5 {[%clk 0:02:22.9]} 20. Rfe1 {[%clk 0:01:12.2]} 20... Rb8 {[%clk
0:02:19.5]} 21. h3 {[%clk 0:01:02.9]} 21... b5 {[%clk 0:02:18.8]} 22. Qc2 {[%clk
0:00:53.3]} 22... Rc8 {[%clk 0:02:10.9]} 23. c5 {[%clk 0:00:46.9]} 23... Bd5
{[%clk 0:02:10.7]} 24. Bg4 {[%clk 0:00:44.9]} 24... Rc6 {[%clk 0:02:06]} 25. d4
{[%clk 0:00:40.6]} 25... Be4 {[%clk 0:02:04.3]} 26. Qb3 {[%clk 0:00:36.3]} 26...
Bxb1 {[%clk 0:02:03.8]} 27. Rxb1 {[%clk 0:00:35.2]} 27... Rc7 {[%clk 0:01:12.7]}
28. Rd1 {[%clk 0:00:19.8]} 28... Rce7 {[%clk 0:01:08.3]} 29. Rd2 {[%clk
0:00:20.5]} 29... Qa5 {[%clk 0:01:01.6]} 30. Qd1 {[%clk 0:00:14.2]} 30... Qb4
{[%clk 0:00:42.5]} 31. c6 {[%clk 0:00:12.2]} 31... Qd6 {[%clk 0:00:42.9]} 32.
Bd7 {[%clk 0:00:09.1]} 32... Rxd7 {[%clk 0:00:39.2]} 33. cxd7 {[%clk 0:00:10]}
33... Qxd7 {[%clk 0:00:40.1]} 34. d5 {[%clk 0:00:10.2]} 34... Qd6 {[%clk
0:00:37.7]} 35. Rc2 {[%clk 0:00:05.7]} 35... Rd8 {[%clk 0:00:36.4]} 36. Rd2
{[%clk 0:00:05.2]} 36... a5 {[%clk 0:00:35.7]} 37. Rd3 {[%clk 0:00:05.4]} 37...
b4 {[%clk 0:00:31]} 38. Qb3 {[%clk 0:00:05.4]} 38... Re8 {[%clk 0:00:28.6]} 39.
Qd1 {[%clk 0:00:04.5]} 39... Bf6 {[%clk 0:00:21.9]} 40. Kf1 {[%clk 0:00:04.9]}
40... Ra8 {[%clk 0:00:18.7]} 41. Qa4 {[%clk 0:00:04.9]} 41... Kg7 {[%clk
0:00:12.5]} 42. Qc6 {[%clk 0:00:05.3]} 42... Rd8 {[%clk 0:00:10.3]} 43. Qxd6
{[%clk 0:00:05.2]} 43... Rxd6 {[%clk 0:00:11.2]} 44. g3 {[%clk 0:00:04.3]} 44...
fxg3 {[%clk 0:00:08.5]} 45. Nxg3 {[%clk 0:00:05.2]} 45... Kg6 {[%clk 0:00:08]}
46. Ne4 {[%clk 0:00:05.9]} 46... Rd8 {[%clk 0:00:07.9]} 47. d6 {[%clk
0:00:06.6]} 47... a4 {[%clk 0:00:07.8]} 48. Nc5 {[%clk 0:00:05]} 48... Be5
{[%clk 0:00:06.5]} 49. d7 {[%clk 0:00:05.2]} 49... Bf6 {[%clk 0:00:06.2]} 50.
Nb7 {[%clk 0:00:05.3]} 50... b3 {[%clk 0:00:06.5]} 51. axb3 {[%clk 0:00:04.8]}
51... a3 {[%clk 0:00:07]} 52. Nxd8 {[%clk 0:00:04.6]} 52... Bxd8 {[%clk
0:00:06.3]} 53. Rd2 {[%clk 0:00:05]} 53... Kf6 {[%clk 0:00:05.7]} 54. Ra2 {[%clk
0:00:05.5]} 54... Ke6 {[%clk 0:00:06.6]} 55. Rxa3 {[%clk 0:00:05.7]} 55... Kxd7
{[%clk 0:00:07.5]} 56. Ra4 {[%clk 0:00:06.5]} 56... h5 {[%clk 0:00:06.9]} 57.
Kg2 {[%clk 0:00:07.4]} 57... f5 {[%clk 0:00:07]} 58. Ra6 {[%clk 0:00:07.5]}
58... g4 {[%clk 0:00:06]} 59. Rh6 {[%clk 0:00:07]} 59... h4 {[%clk 0:00:05.4]}
60. Rh5 {[%clk 0:00:07.1]} 60... Ke6 {[%clk 0:00:05.4]} 61. b4 {[%clk
0:00:07.5]} 61... Ke5 {[%clk 0:00:04.8]} 62. hxg4 {[%clk 0:00:07.3]} 62... Kf4
{[%clk 0:00:03.9]} 63. gxf5 {[%clk 0:00:07.6]} 1-0

[Event "Late-Titled-Tuesday-Blitz-January-30-2024"]
[Site "Chess.com"]
[Date "2024.01.30"]
[Round "10"]
[White "Fh2411"]
[Black "BardArtem"]
[Result "1-0"]
[WhiteElo "2612"]
[BlackElo "2763"]
[TimeControl "180+1"]
[EndTime "15:55:58 PST"]
[Termination "Fh2411 won by resignation"]

1. d4 {[%clk 0:03:00.9]} 1... Nf6 {[%clk 0:02:57.5]} 2. Nf3 {[%clk 0:03:00.7]}
2... b6 {[%clk 0:02:54.8]} 3. Bf4 {[%clk 0:02:59.4]} 3... Bb7 {[%clk 0:02:53]}
4. e3 {[%clk 0:02:59.8]} 4... g6 {[%clk 0:02:53.1]} 5. h3 {[%clk 0:02:57.7]}
5... Bg7 {[%clk 0:02:53.3]} 6. Be2 {[%clk 0:02:58]} 6... O-O {[%clk 0:02:53.7]}
7. O-O {[%clk 0:02:58.7]} 7... d6 {[%clk 0:02:54.1]} 8. c4 {[%clk 0:02:58.8]}
8... Nbd7 {[%clk 0:02:54.4]} 9. Nc3 {[%clk 0:02:59.5]} 9... Qe8 {[%clk
0:02:53.8]} 10. Nb5 {[%clk 0:02:21]} 10... Qb8 {[%clk 0:02:43.2]} 11. Bh2 {[%clk
0:02:09.5]} 11... Ne4 {[%clk 0:02:40.2]} 12. Nd2 {[%clk 0:02:05.9]} 12... Nxd2
{[%clk 0:02:38.1]} 13. Qxd2 {[%clk 0:02:06.8]} 13... Nf6 {[%clk 0:02:38.3]} 14.
Nc3 {[%clk 0:02:02.5]} 14... Rd8 {[%clk 0:02:31.3]} 15. Qc2 {[%clk 0:01:59.5]}
15... e6 {[%clk 0:02:29.4]} 16. Rfd1 {[%clk 0:01:53.9]} 16... h6 {[%clk
0:02:21.9]} 17. Rac1 {[%clk 0:01:53.4]} 17... Qc8 {[%clk 0:02:15.5]} 18. c5
{[%clk 0:01:23.8]} 18... Qd7 {[%clk 0:02:09.5]} 19. Bb5 {[%clk 0:01:15.3]} 19...
Bc6 {[%clk 0:02:03.2]} 20. Bxc6 {[%clk 0:01:12.8]} 20... Qxc6 {[%clk 0:02:04.1]}
21. cxd6 {[%clk 0:01:06.6]} 21... cxd6 {[%clk 0:02:05]} 22. Qa4 {[%clk
0:01:06.5]} 22... Qxa4 {[%clk 0:01:57.6]} 23. Nxa4 {[%clk 0:01:07.4]} 23... b5
{[%clk 0:01:53.2]} 24. Nc3 {[%clk 0:01:06.1]} 24... a6 {[%clk 0:01:53.3]} 25. a4
{[%clk 0:00:54.5]} 25... b4 {[%clk 0:01:52.2]} 26. Nb1 {[%clk 0:00:55.1]} 26...
Rac8 {[%clk 0:01:30]} 27. Nd2 {[%clk 0:00:53.1]} 27... d5 {[%clk 0:01:25.9]} 28.
f3 {[%clk 0:00:51.8]} 28... Bf8 {[%clk 0:01:25.2]} 29. Kf2 {[%clk 0:00:51.2]}
29... Nd7 {[%clk 0:01:24.9]} 30. a5 {[%clk 0:00:38.8]} 30... f6 {[%clk
0:01:20.3]} 31. Bc7 {[%clk 0:00:36.9]} 31... Re8 {[%clk 0:01:19.9]} 32. Nb3
{[%clk 0:00:35.7]} 32... Kf7 {[%clk 0:01:19.5]} 33. Rc2 {[%clk 0:00:20]} 33...
g5 {[%clk 0:01:11.1]} 34. Rdc1 {[%clk 0:00:20.3]} 34... h5 {[%clk 0:01:09.4]}
35. Rc6 {[%clk 0:00:20.4]} 35... Ra8 {[%clk 0:01:02.8]} 36. Bb6 {[%clk
0:00:17.8]} 36... Be7 {[%clk 0:00:59]} 37. Rc7 {[%clk 0:00:17.4]} 37... Nf8
{[%clk 0:00:45.2]} 38. Rb7 {[%clk 0:00:15.9]} 38... Reb8 {[%clk 0:00:43.6]} 39.
Rcc7 {[%clk 0:00:15.3]} 39... Rxb7 {[%clk 0:00:44]} 40. Rxb7 {[%clk 0:00:16.2]}
40... Ke8 {[%clk 0:00:35.6]} 41. Bc5 {[%clk 0:00:14.3]} 41... Ng6 {[%clk
0:00:31.1]} 42. Rxb4 {[%clk 0:00:14]} 42... e5 {[%clk 0:00:23.6]} 43. Rb7 {[%clk
0:00:12]} 43... Rc8 {[%clk 0:00:20.8]} 44. Rb6 {[%clk 0:00:07]} 44... exd4
{[%clk 0:00:20.7]} 45. exd4 {[%clk 0:00:07.4]} 45... Nf4 {[%clk 0:00:16.1]} 46.
Rxa6 {[%clk 0:00:06.3]} 46... Rb8 {[%clk 0:00:15.8]} 47. Rb6 {[%clk 0:00:05.7]}
47... Ra8 {[%clk 0:00:15.7]} 48. g3 {[%clk 0:00:04.2]} 48... Nd3+ {[%clk
0:00:15]} 49. Ke3 {[%clk 0:00:04.5]} 49... Nxb2 {[%clk 0:00:15.6]} 50. Re6
{[%clk 0:00:03.7]} 50... Kd7 {[%clk 0:00:11.7]} 51. Rxe7+ {[%clk 0:00:03.9]}
51... Kc6 {[%clk 0:00:12.6]} 52. Kd2 {[%clk 0:00:04.2]} 52... Nc4+ {[%clk
0:00:13.5]} 53. Kc3 {[%clk 0:00:04.7]} 53... Rb8 {[%clk 0:00:14.4]} 54. Re6+
{[%clk 0:00:04.7]} 54... Kd7 {[%clk 0:00:14.6]} 55. Rxf6 {[%clk 0:00:05.2]}
55... Re8 {[%clk 0:00:15.3]} 56. a6 {[%clk 0:00:04.1]} 56... Ne3 {[%clk
0:00:10.4]} 57. a7 {[%clk 0:00:04]} 57... Kc7 {[%clk 0:00:10.3]} 58. Rf7+ {[%clk
0:00:04]} 58... Kc6 {[%clk 0:00:10.5]} 59. Na5+ {[%clk 0:00:03.7]} 59... Kb5
{[%clk 0:00:09.5]} 60. Rb7+ {[%clk 0:00:04.3]} 60... Kxa5 {[%clk 0:00:08.4]} 61.
Rb8 {[%clk 0:00:04.8]} 1-0

[Event "Late-Titled-Tuesday-Blitz-January-30-2024"]
[Site "Chess.com"]
[Date "2024.01.30"]
[Round "10"]
[White "dmitrijiIM"]
[Black "BilodeauA"]
[Result "1-0"]
[WhiteElo "2909"]
[BlackElo "3017"]
[TimeControl "180+1"]
[EndTime "15:56:06 PST"]
[Termination "dmitrijiIM won by resignation"]

1. d4 {[%clk 0:03:00.9]} 1... d5 {[%clk 0:02:56.6]} 2. c4 {[%clk 0:02:59.9]}
2... dxc4 {[%clk 0:02:56.9]} 3. Nf3 {[%clk 0:02:58.4]} 3... a6 {[%clk
0:02:57.3]} 4. e3 {[%clk 0:02:54.4]} 4... Bg4 {[%clk 0:02:57.1]} 5. Bxc4 {[%clk
0:02:52.4]} 5... e6 {[%clk 0:02:57.6]} 6. h3 {[%clk 0:02:46.6]} 6... Bh5 {[%clk
0:02:58]} 7. g4 {[%clk 0:02:43.9]} 7... Bg6 {[%clk 0:02:58.3]} 8. Ne5 {[%clk
0:02:44.4]} 8... Be4 {[%clk 0:02:58.6]} 9. f3 {[%clk 0:02:40]} 9... Bxb1 {[%clk
0:02:58.7]} 10. Rxb1 {[%clk 0:02:39.9]} 10... Nd7 {[%clk 0:02:59.4]} 11. Nxd7
{[%clk 0:02:38.6]} 11... Qxd7 {[%clk 0:02:59.6]} 12. Bd2 {[%clk 0:02:20.8]}
12... Ne7 {[%clk 0:02:58.3]} 13. Rc1 {[%clk 0:02:20.1]} 13... h5 {[%clk
0:02:57]} 14. Kf2 {[%clk 0:02:18.2]} 14... g6 {[%clk 0:02:35.5]} 15. Qb3 {[%clk
0:02:07.4]} 15... c6 {[%clk 0:02:30.8]} 16. Bc3 {[%clk 0:01:53.9]} 16... Nd5
{[%clk 0:02:11.9]} 17. Bd2 {[%clk 0:01:45]} 17... Bg7 {[%clk 0:02:11.1]} 18. Kg2
{[%clk 0:01:39.4]} 18... Qe7 {[%clk 0:02:09.6]} 19. e4 {[%clk 0:01:33.6]} 19...
Nf6 {[%clk 0:02:07.7]} 20. Bb4 {[%clk 0:01:29.8]} 20... Qd7 {[%clk 0:01:43.1]}
21. Rhd1 {[%clk 0:01:23.2]} 21... hxg4 {[%clk 0:01:38.8]} 22. hxg4 {[%clk
0:01:24.1]} 22... Qc7 {[%clk 0:01:36.5]} 23. e5 {[%clk 0:01:16.6]} 23... O-O-O
{[%clk 0:01:36.8]} 24. Qa4 {[%clk 0:00:32.1]} 24... Nd5 {[%clk 0:01:31.2]} 25.
Ba5 {[%clk 0:00:08.6]} 25... Ne3+ {[%clk 0:00:51.2]} 26. Kg1 {[%clk 0:00:08.7]}
26... Rh1+ {[%clk 0:00:51.8]} 27. Kxh1 {[%clk 0:00:08.3]} 27... Rh8+ {[%clk
0:00:52.6]} 28. Kg1 {[%clk 0:00:08.3]} 28... Qe7 {[%clk 0:00:53.5]} 29. Bxa6
{[%clk 0:00:04.6]} 29... Rh1+ {[%clk 0:00:53.6]} 30. Kf2 {[%clk 0:00:02.6]}
30... Nxd1+ {[%clk 0:00:43.4]} 31. Rxd1 {[%clk 0:00:02.5]} 31... Qh4+ {[%clk
0:00:37.3]} 32. Ke3 {[%clk 0:00:02]} 32... Qg5+ {[%clk 0:00:25.1]} 33. Kd3
{[%clk 0:00:01.9]} 33... Rxd1+ {[%clk 0:00:25]} 34. Qxd1 {[%clk 0:00:02.8]}
34... bxa6 {[%clk 0:00:25.9]} 35. Qc2 {[%clk 0:00:02.8]} 35... Kd7 {[%clk
0:00:08.9]} 36. Qb3 {[%clk 0:00:03.2]} 36... Kc8 {[%clk 0:00:03.3]} 37. Qb6
{[%clk 0:00:03.5]} 37... Qe7 {[%clk 0:00:03.6]} 38. Qxc6+ {[%clk 0:00:03.4]}
38... Kb8 {[%clk 0:00:04.3]} 39. Qb6+ {[%clk 0:00:03.6]} 39... Qb7 {[%clk
0:00:04]} 40. Qxb7+ {[%clk 0:00:03]} 40... Kxb7 {[%clk 0:00:04.7]} 41. Kc4
{[%clk 0:00:02.9]} 41... Kc6 {[%clk 0:00:04.9]} 42. Bd2 {[%clk 0:00:03.2]} 42...
Bf8 {[%clk 0:00:04.4]} 43. b4 {[%clk 0:00:03.6]} 43... Be7 {[%clk 0:00:05.2]}
44. a4 {[%clk 0:00:04.1]} 44... Kb7 {[%clk 0:00:05.9]} 45. b5 {[%clk 0:00:05]}
45... axb5+ {[%clk 0:00:06.7]} 46. axb5 {[%clk 0:00:05.9]} 46... Kb6 {[%clk
0:00:07.6]} 47. Bb4 {[%clk 0:00:06.1]} 47... Bd8 {[%clk 0:00:08.3]} 48. Bc5+
{[%clk 0:00:06.6]} 48... Kb7 {[%clk 0:00:09]} 49. d5 {[%clk 0:00:06.7]} 49...
Ba5 {[%clk 0:00:09.1]} 50. Bd4 {[%clk 0:00:05.9]} 50... Be1 {[%clk 0:00:08.9]}
51. d6 {[%clk 0:00:05.4]} 51... Ba5 {[%clk 0:00:08.2]} 52. Kd3 {[%clk
0:00:05.9]} 52... Kc8 {[%clk 0:00:08.5]} 53. Ke4 {[%clk 0:00:06.1]} 53... Kd7
{[%clk 0:00:08.6]} 54. f4 {[%clk 0:00:06.7]} 54... Bb4 {[%clk 0:00:07.5]} 55. f5
{[%clk 0:00:07.6]} 55... gxf5+ {[%clk 0:00:06.2]} 56. gxf5 {[%clk 0:00:08.5]}
56... Ba5 {[%clk 0:00:06.9]} 57. Kf4 {[%clk 0:00:06.3]} 57... Bd8 {[%clk
0:00:07]} 58. Kg4 {[%clk 0:00:05.8]} 58... exf5+ {[%clk 0:00:03.1]} 59. Kxf5
{[%clk 0:00:06]} 59... Ba5 {[%clk 0:00:03]} 60. Kf6 {[%clk 0:00:05.6]} 60... Ke8
{[%clk 0:00:03.7]} 61. b6 {[%clk 0:00:05.4]} 61... Kd7 {[%clk 0:00:02.1]} 62.
Kxf7 {[%clk 0:00:05.1]} 62... Kc6 {[%clk 0:00:03]} 63. e6 {[%clk 0:00:04.5]}
63... Bb4 {[%clk 0:00:03.6]} 64. e7 {[%clk 0:00:04.5]} 1-0

[Event "Late-Titled-Tuesday-Blitz-January-30-2024"]
[Site "Chess.com"]
[Date "2024.01.30"]
[Round "10"]
[White "JaackCamel"]
[Black "akanga001"]
[Result "1-0"]
[WhiteElo "2159"]
[BlackElo "1990"]
[TimeControl "180+1"]
[EndTime "15:56:16 PST"]
[Termination "JaackCamel won by resignation"]

1. d4 {[%clk 0:02:58.7]} 1... d5 {[%clk 0:02:54.5]} 2. c4 {[%clk 0:02:57.9]}
2... e6 {[%clk 0:02:54.5]} 3. Nc3 {[%clk 0:02:57.3]} 3... Nf6 {[%clk 0:02:54.6]}
4. cxd5 {[%clk 0:02:56.9]} 4... exd5 {[%clk 0:02:53.4]} 5. Bg5 {[%clk 0:02:57]}
5... c6 {[%clk 0:02:52.8]} 6. e3 {[%clk 0:02:57.2]} 6... Be7 {[%clk 0:02:53.1]}
7. Bd3 {[%clk 0:02:56.7]} 7... O-O {[%clk 0:02:53.5]} 8. Qc2 {[%clk 0:02:55.1]}
8... Nbd7 {[%clk 0:02:53.4]} 9. Nge2 {[%clk 0:02:54.3]} 9... Re8 {[%clk
0:02:53.4]} 10. O-O {[%clk 0:02:48.5]} 10... Nf8 {[%clk 0:02:52.1]} 11. h3
{[%clk 0:02:39.6]} 11... Be6 {[%clk 0:02:45]} 12. Rad1 {[%clk 0:02:36.2]} 12...
N6d7 {[%clk 0:02:44.6]} 13. Bf4 {[%clk 0:02:34.7]} 13... Rc8 {[%clk 0:02:43.9]}
14. Qb1 {[%clk 0:02:33.6]} 14... Ng6 {[%clk 0:02:38.3]} 15. Bg3 {[%clk
0:02:31.5]} 15... a5 {[%clk 0:02:38]} 16. Rc1 {[%clk 0:02:28.4]} 16... Ndf8
{[%clk 0:02:15.1]} 17. Rfd1 {[%clk 0:02:25.7]} 17... Bd6 {[%clk 0:02:14.4]} 18.
Bxd6 {[%clk 0:02:23.4]} 18... Qxd6 {[%clk 0:02:13.6]} 19. Na4 {[%clk 0:02:21.5]}
19... Nd7 {[%clk 0:02:05.2]} 20. Nc5 {[%clk 0:02:19.8]} 20... Nxc5 {[%clk
0:02:02.1]} 21. Rxc5 {[%clk 0:02:19.5]} 21... b6 {[%clk 0:02:01.6]} 22. Rc3
{[%clk 0:02:15.7]} 22... Rc7 {[%clk 0:01:58.6]} 23. Rdc1 {[%clk 0:02:12.9]}
23... Rec8 {[%clk 0:01:55.7]} 24. Bxg6 {[%clk 0:02:09.5]} 24... hxg6 {[%clk
0:01:53.8]} 25. Qc2 {[%clk 0:02:04.9]} 25... Bd7 {[%clk 0:01:48.6]} 26. Nf4
{[%clk 0:02:04.2]} 26... g5 {[%clk 0:01:44.2]} 27. Nd3 {[%clk 0:02:03.9]} 27...
Bf5 {[%clk 0:01:37.5]} 28. Qe2 {[%clk 0:02:03.6]} 28... Bxd3 {[%clk 0:01:36.7]}
29. Qxd3 {[%clk 0:02:03.7]} 29... c5 {[%clk 0:01:35.2]} 30. Qf5 {[%clk
0:01:55.2]} 30... f6 {[%clk 0:01:33.2]} 31. dxc5 {[%clk 0:01:46.7]} 31... Rxc5
{[%clk 0:01:31.5]} 32. Qxc8+ {[%clk 0:01:39.4]} 32... Rxc8 {[%clk 0:01:30.6]}
33. Rxc8+ {[%clk 0:01:39.6]} 33... Kh7 {[%clk 0:01:31.2]} 34. R8c6 {[%clk
0:01:32]} 34... Qb4 {[%clk 0:01:30.8]} 35. R6c2 {[%clk 0:01:24.5]} 35... d4
{[%clk 0:01:30.2]} 36. exd4 {[%clk 0:01:23.5]} 36... Qxd4 {[%clk 0:01:29.7]} 37.
b3 {[%clk 0:01:20.5]} 37... b5 {[%clk 0:01:28.6]} 38. Rc5 {[%clk 0:01:16.6]}
38... Qd3 {[%clk 0:01:27.7]} 39. R1c2 {[%clk 0:01:09]} 39... a4 {[%clk
0:01:20.5]} 40. bxa4 {[%clk 0:01:08.1]} 40... bxa4 {[%clk 0:01:19.9]} 41. R5c3
{[%clk 0:01:05.6]} 41... Qd1+ {[%clk 0:01:15.1]} 42. Kh2 {[%clk 0:01:05.4]}
42... Qd6+ {[%clk 0:01:12.3]} 43. g3 {[%clk 0:01:05.3]} 43... f5 {[%clk
0:01:11]} 44. Rc5 {[%clk 0:01:00]} 44... f4 {[%clk 0:01:04.1]} 45. Rxg5 {[%clk
0:00:55.1]} 45... fxg3+ {[%clk 0:01:04.4]} 46. Rxg3 {[%clk 0:00:43.2]} 46... Qd1
{[%clk 0:01:03.5]} 47. Rc4 {[%clk 0:00:39.6]} 47... Qe2 {[%clk 0:01:01.5]} 48.
Rh4+ {[%clk 0:00:35.7]} 48... Kg8 {[%clk 0:00:59.8]} 49. Rxa4 {[%clk 0:00:32.2]}
49... Qxf2+ {[%clk 0:00:59.4]} 50. Rg2 {[%clk 0:00:32]} 50... Qf7 {[%clk
0:00:51.7]} 51. Rag4 {[%clk 0:00:26.5]} 51... Qc7+ {[%clk 0:00:43.8]} 52. Kh1
{[%clk 0:00:24.4]} 52... Qc1+ {[%clk 0:00:43.6]} 53. Rg1 {[%clk 0:00:23.5]}
53... Qc6+ {[%clk 0:00:37.5]} 54. Kh2 {[%clk 0:00:21.6]} 54... Qd6+ {[%clk
0:00:34.3]} 55. R4g3 {[%clk 0:00:20.6]} 55... Kf8 {[%clk 0:00:29.3]} 56. h4
{[%clk 0:00:19.4]} 56... Qf4 {[%clk 0:00:27]} 57. Kh3 {[%clk 0:00:18.2]} 57...
Qf5+ {[%clk 0:00:24.6]} 58. Rg4 {[%clk 0:00:17.2]} 58... Qf3+ {[%clk 0:00:23.7]}
59. R4g3 {[%clk 0:00:16]} 59... Qf5+ {[%clk 0:00:23.1]} 60. Kh2 {[%clk
0:00:16.2]} 60... Qf4 {[%clk 0:00:20.5]} 61. Kg2 {[%clk 0:00:14.6]} 61... Qxh4
{[%clk 0:00:19.3]} 62. Kf3 {[%clk 0:00:14.5]} 62... Qf6+ {[%clk 0:00:17.9]} 63.
Ke4 {[%clk 0:00:14.4]} 63... Qe6+ {[%clk 0:00:17.3]} 64. Kd3 {[%clk 0:00:12.4]}
64... Qxa2 {[%clk 0:00:16.1]} 65. Rxg7 {[%clk 0:00:12.6]} 65... Qb1+ {[%clk
0:00:14.2]} 66. Rxb1 {[%clk 0:00:11.7]} 66... Kxg7 {[%clk 0:00:10.3]} 67. Rb6
{[%clk 0:00:11.4]} 1-0